bitfinex-derivatives/quotes_SOLF0:USTF0_20241216
["timestamp","ask_amount","ask_price","bid_price","bid_amount"]
[1734312692662,2.84,226.17,226.04,0.66]
[1734312692859,2.84,226.17,226.04,9.21145056]
[1734312693058,2.84,226.17,226.05,4.9411159]
[1734312693260,2.84,226.17,226.04,9.21145056]
[1734312693458,2.84,226.17,226.05,4.9405061]
[1734312693657,2.84,226.17,226.04,9.21145056]
[1734312693961,2.84,226.17,226.05,7.75790569]
[1734312694161,2.84,226.17,226.05,2.82]
[1734312694356,2.2129,226.07,225.99,2.2136]
[1734312694557,10.66195056,226.06,225.91,9.21145056]
[1734312694758,10.66195056,226.06,225.92,4.93663147]
[1734312694958,2.2132,226.04,225.99,5.43563681]
[1734312695363,2.2132,226.04,225.97,2.2138]
[1734312695764,12.15035056,226.06,226.0,2.2136]
[1734312695963,12.15035056,226.06,225.92,4.93679947]
[1734312695964,2.9389,226.06,225.92,4.93679947]
[1734312696158,2.9389,226.06,225.91,9.21145056]
[1734312696564,2.9389,226.06,226.0,2.2135]
[1734312697066,12.15035056,226.06,225.97,5.24770842]
[1734312697267,12.15035056,226.06,225.9,12.03145056]
[1734312698056,12.15035056,226.06,225.96,2.2139]
[1734312698265,12.15035056,226.06,225.9,12.03145056]
[1734312698762,12.15035056,226.06,225.96,5.21339034]
[1734312699162,9.21145056,226.03,225.96,5.21339034]
[1734312699866,9.21145056,226.03,225.96,7.42729034]
[1734312700062,12.15035056,226.06,225.96,7.42729034]
[1734312700263,2.2133,226.03,225.97,2.2138]
[1734312700463,2.2133,226.03,225.96,5.21339034]
[1734312700659,12.15035056,226.06,225.96,5.21339034]
[1734312701467,2.2133,226.03,225.97,2.2138]
[1734312701666,12.15035056,226.06,225.96,5.21339034]
[1734312702166,2.9389,226.06,225.96,5.21339034]
[1734312702470,2.82,226.12,225.99,9.21145056]
[1734312702664,2.82,226.12,226.08,2.2128]
[1734312702860,2.82,226.12,225.99,9.21145056]
[1734312703059,5.032,226.16,226.02,9.21145056]
[1734312703264,2.82,226.16,226.03,2.82]
[1734312703768,2.82,226.16,226.12,2.2124]
[1734312704364,2.2118,226.18,226.12,2.2124]
[1734312704864,2.2118,226.18,226.03,2.82]
[1734312704865,2.9129,226.19,226.08,9.21145056]
[1734312705260,2.9129,226.19,226.14,2.2122]
[1734312705867,2.9129,226.19,226.15,2.2121]
[1734312706267,2.9129,226.19,226.05,14.75915252]
[1734312706669,2.9129,226.19,226.06,4.9292035]
[1734312706869,2.9129,226.19,226.13,2.2122]
[1734312707164,2.9129,226.19,226.05,14.75915252]
[1734312707866,2.9129,226.19,226.13,2.2123]
[1734312708871,2.9129,226.19,226.14,2.2122]
[1734312709071,2.9129,226.19,226.07,4.93074073]
[1734312709365,2.9129,226.19,226.05,14.75915252]
[1734312709571,2.9129,226.19,226.14,2.2122]
[1734312710568,2.9129,226.19,226.12,2.2123]
[1734312710772,2.9129,226.19,226.05,14.75915252]
[1734312710968,2.9129,226.19,226.06,4.9331739]
[1734312711172,2.9129,226.19,226.05,14.75915252]
[1734312711468,2.9129,226.19,226.06,4.93321426]
[1734312711773,2.9129,226.19,226.14,2.2122]
[1734312712468,2.9129,226.19,226.14,7.40899332]
[1734312713566,1.4676,226.19,226.14,7.40899332]
[1734312713871,2.82,226.22,226.16,2.212]
[1734312714067,1.3953,226.25,226.14,5.19679332]
[1734312714268,1.3953,226.25,226.17,2.2119]
[1734312714470,1.3953,226.25,226.14,5.19679332]
[1734312714772,1.549,226.26,226.15,2.82]
[1734312714965,1.5093,226.31,226.17,14.75915252]
[1734312715466,2.82,226.33,226.17,14.75915252]
[1734312715666,1.5136,226.36,226.17,14.75915252]
[1734312715872,0.27497,226.31,226.17,14.75915252]
[1734312716075,0.27497,226.31,226.26,2.2109]
[1734312716471,0.27497,226.31,226.21,2.82]
[1734312716769,0.27497,226.31,226.24,2.2112]
[1734312716975,0.27497,226.31,226.21,2.82]
[1734312717874,0.27497,226.31,226.27,2.2108]
[1734312719370,0.27497,226.31,226.22,2.82]
[1734312719574,0.27497,226.31,226.18,2.82]
[1734312720380,2.48547,226.31,226.21,2.2115]
[1734312720575,2.48547,226.31,226.16,2.82]
[1734312720576,0.27497,226.31,226.16,2.82]
[1734312720976,2.211,226.27,226.19,2.2117]
[1734312721176,2.82,226.28,226.19,2.2117]
[1734312721376,2.82,226.28,226.14,8.01679332]
[1734312721577,2.82,226.28,226.2,2.2116]
[1734312722582,5.0309,226.28,226.14,8.01679332]
[1734312722783,2.82,226.28,226.17,14.75915252]
[1734312723084,0.27497,226.31,226.26,2.2109]
[1734312723478,0.27497,226.31,226.28,2.2108]
[1734312724380,0.27497,226.31,226.21,2.82]
[1734312725182,0.27497,226.31,226.25,2.2111]
[1734312725675,0.27497,226.31,226.21,17.57915252]
[1734312725980,0.27497,226.31,226.3,2.2106]
[1734312729073,0.00497,226.31,226.3,2.2106]
[1734312729273,9.21075362,226.43,226.28,2.82]
[1734312729478,9.21075362,226.43,226.31,9.21075362]
[1734312729479,2.2096,226.41,226.31,9.21075362]
[1734312729976,6.4435,226.43,226.35,2.2101]
[1734312730172,4.234,226.43,226.35,2.2101]
[1734312730577,2.2095,226.42,226.36,2.21]
[1734312731781,2.2095,226.42,226.31,9.21075362]
[1734312731782,3.6234,226.43,226.38,2.2098]
[1734312733284,2.2089,226.48,226.42,2.2094]
[1734312733482,12.03075362,226.49,226.35,2.82]
[1734312733784,2.82,226.48,226.35,2.82]
[1734312733985,2.82,226.48,226.37,2.2099]
[1734312734581,2.82,226.48,226.39,2.2097]
[1734312734782,2.82,226.48,226.34,9.21075362]
[1734312735787,2.209,226.47,226.42,2.2094]
[1734312736483,2.82,226.48,226.34,9.21075362]
[1734312736689,9.21075362,226.46,226.31,9.21075362]
[1734312736987,2.2097,226.4,226.3,8.20664777]
[1734312737188,2.82,226.42,226.31,9.21075362]
[1734312738079,12.03075362,226.46,226.31,9.21075362]
[1734312738388,2.2094,226.43,226.31,9.21075362]
[1734312738888,12.03075362,226.46,226.31,9.21075362]
[1734312739189,2.2095,226.42,226.36,2.21]
[1734312739588,2.2095,226.42,226.31,9.21075362]
[1734312739792,2.2095,226.42,226.37,2.2099]
[1734312743587,1.501,226.44,226.4,2.2096]
[1734312744587,1.501,226.44,226.34,9.21075362]
[1734312744987,10.61075362,226.53,226.37,9.21075362]
[1734312745286,3.027,226.52,226.4,9.21075362]
[1734312746384,5.2356,226.52,226.46,2.209]
[1734312747184,5.2356,226.52,226.4,9.21075362]
[1734312747185,3.027,226.52,226.4,9.21075362]
[1734312747392,5.847,226.52,226.4,9.21075362]
[1734312747694,5.847,226.52,226.43,9.21075362]
[1734312748193,5.847,226.52,226.45,2.2091]
[1734312748394,5.847,226.52,226.43,9.21075362]
[1734312748789,8.0555,226.52,226.47,2.2089]
[1734312748989,9.21075362,226.59,226.43,9.21075362]
[1734312749188,2.2083,226.54,226.47,2.2089]
[1734312749389,2.2083,226.54,226.43,12.03075362]
[1734312749891,2.2083,226.54,226.46,2.209]
[1734312750090,2.2083,226.54,226.43,12.03075362]
[1734312750792,2.2083,226.54,226.47,5.38674455]
[1734312751392,2.82,226.57,226.47,5.38674455]
[1734312751994,9.21075362,226.55,226.32,1.4127]
[1734312752189,9.21075362,226.51,226.36,9.21075362]
[1734312752388,1.4206,226.54,226.43,5.32150532]
[1734312752389,2.82,226.5,226.43,5.32150532]
[1734312752597,2.2088,226.49,226.44,2.2093]
[1734312754090,2.82,226.5,226.43,5.32150532]
[1734312754289,2.209,226.47,226.43,5.32150532]
[1734312756493,1.4558,226.49,226.36,9.21075362]
[1734312756494,2.2093,226.44,226.36,9.21075362]
[1734312757491,2.2093,226.44,226.38,2.2098]
[1734312758397,3.0001,226.49,226.4,5.25630022]
[1734312758598,9.21075362,226.48,226.33,9.21075362]
[1734312758799,9.21075362,226.48,226.34,4.94204262]
[1734312758989,9.21075362,226.48,226.33,9.21075362]
[1734312759297,9.21075362,226.48,226.34,4.94186915]
[1734312759497,9.21075362,226.48,226.35,4.94539299]
[1734312759498,2.2095,226.42,226.35,4.94539299]
[1734312759693,2.2095,226.42,226.33,9.21075362]
[1734312759999,2.2095,226.42,226.34,4.94539293]
[1734312760190,2.2095,226.42,226.36,2.21]
[1734312762293,2.2094,226.43,226.38,5.38782573]
[1734312764794,2.8,226.44,226.3,12.01075362]
[1734312764995,2.8,226.44,226.34,5.34060134]
[1734312765305,1.4384,226.43,226.34,5.34060134]
[1734312765800,2.2098,226.38,226.34,5.34060134]
[1734312766906,2.2097,226.4,226.34,5.34060134]
[1734312768002,1.4384,226.43,226.34,5.34060134]
[1734312768206,2.2098,226.39,226.34,5.34060134]
[1734312768605,9.21075362,226.42,226.27,9.21075362]
[1734312768900,2.21,226.36,226.31,2.2104]
[1734312769302,2.8,226.37,226.32,2.2104]
[1734312769699,2.8,226.37,226.32,7.54663849]
[1734312772007,2.8,226.37,226.32,2.2104]
[1734312772410,5.0099,226.37,226.32,2.2104]
[1734312773105,2.8,226.37,226.31,5.37593039]
[1734312773407,2.8,226.37,226.24,10.63235362]
[1734312773607,2.8,226.37,226.25,4.96433484]
[1734312773804,5.0102,226.37,226.31,2.2107]
[1734312774008,2.8,226.37,226.24,10.63235362]
[1734312774208,2.8,226.37,226.25,4.96433258]
[1734312774509,2.8,226.37,226.24,10.63235362]
[1734312774510,2.8,226.37,226.26,4.96433258]
[1734312774804,2.8,226.37,226.27,4.96433258]
[1734312775109,2.8,226.37,226.24,10.63235362]
[1734312775310,2.2104,226.34,226.29,2.2109]
[1734312776209,2.8,226.37,226.29,2.2109]
[1734312776510,2.2103,226.35,226.3,2.2108]
[1734312776911,2.2105,226.34,226.28,2.2109]
[1734312777406,2.2105,226.34,226.29,5.41096312]
[1734312778503,5.89581508,226.35,226.3,2.2108]
[1734312779309,3.7044,226.36,226.29,11.3067782]
[1734312779510,1.43,226.38,226.33,5.89581508]
[1734312780404,1.43,226.38,226.35,2.2102]
[1734312781207,9.54381508,226.43,226.35,5.89581508]
[1734312781407,2.8,226.43,226.35,5.89581508]
[1734312782211,2.8,226.43,226.38,2.21]
[1734312782712,5.0095,226.43,226.38,2.21]
[1734312782907,5.89581508,226.42,226.35,5.89581508]
[1734312783107,2.8,226.43,226.29,8.24656312]
[1734312783108,5.89581508,226.4,226.29,8.24656312]
[1734312783304,2.21,226.38,226.31,5.89581508]
[1734312784110,8.10581508,226.38,226.31,5.89581508]
[1734312784507,8.10581508,226.38,226.33,2.2104]
[1734312785712,8.10581508,226.38,226.31,5.89581508]
[1734312785914,2.21,226.38,226.34,2.2103]
[1734312786210,5.89581508,226.43,226.35,5.89581508]
[1734312786415,8.69581508,226.43,226.35,5.89581508]
[1734312786613,2.2098,226.4,226.33,5.89581508]
[1734312787517,2.2098,226.4,226.35,2.2102]
[1734312790110,5.89581508,226.39,226.31,5.89581508]
[1734312791415,2.21,226.38,226.33,2.2104]
[1734312792210,5.89581508,226.37,226.29,5.89581508]
[1734312792416,5.89581508,226.35,226.19,1.5486]
[1734312792614,8.69581508,226.35,226.26,5.89581508]
[1734312792815,8.69581508,226.35,226.3,2.2107]
[1734312793013,8.69581508,226.35,226.28,5.89581508]
[1734312793217,2.8,226.35,226.28,5.89581508]
[1734312794018,2.8,226.35,226.31,2.2106]
[1734312794218,1.5142,226.38,226.3,5.89581508]
[1734312794623,1.5142,226.38,226.33,2.2104]
[1734312794823,3.7242,226.38,226.33,2.2104]
[1734312798528,5.89581508,226.35,226.23,5.89581508]
[1734312798723,5.89581508,226.32,226.24,4.96915175]
[1734312798929,8.10661508,226.3,226.26,2.2111]
[1734312799325,5.89581508,226.3,226.26,2.2111]
[1734312799527,2.8,226.33,226.25,5.89581508]
[1734312799725,2.8,226.33,226.27,5.89581508]
[1734312799926,2.8,226.33,226.3,2.2106]
[1734312800728,5.0105,226.33,226.28,2.2109]
[1734312802226,2.2105,226.33,226.28,2.2109]
[1734312802532,2.2105,226.33,226.27,2.211]
[1734312802830,2.8,226.34,226.26,5.40577899]
[1734312803030,2.2106,226.32,226.26,5.40577899]
[1734312803224,2.2106,226.32,226.26,7.61677899]
[1734312804429,2.2106,226.32,226.27,2.211]
[1734312805031,2.2106,226.32,226.26,5.40577899]
[1734312805235,2.2106,226.32,226.28,2.2109]
[1734312806733,5.0104,226.34,226.29,2.2107]
[1734312807333,2.2104,226.34,226.29,2.2107]
[1734312807532,5.0104,226.34,226.29,2.2107]
[1734312809325,5.0104,226.34,226.26,5.40577899]
[1734312809527,3.6109,226.37,226.27,4.97421462]
[1734312809835,3.6109,226.37,226.28,4.97421462]
[1734312810131,3.6109,226.37,226.33,2.2104]
[1734312811232,1.5142,226.38,226.27,9.21128803]
[1734312811539,1.5142,226.38,226.28,4.9741898]
[1734312811735,1.5142,226.38,226.29,4.9741898]
[1734312811933,1.5142,226.38,226.3,4.9741898]
[1734312812139,1.5142,226.38,226.31,4.9741898]
[1734312812338,3.7391,226.43,226.37,2.21]
[1734312812539,6.5391,226.43,226.37,2.21]
[1734312812839,6.5391,226.43,226.3,9.21128803]
[1734312812840,4.3296,226.43,226.3,9.21128803]
[1734312813136,1.5371,226.46,226.36,9.21128803]
[1734312813336,1.5371,226.46,226.37,4.97399559]
[1734312813537,3.7463,226.46,226.4,2.2097]
[1734312813733,1.5371,226.46,226.4,2.2097]
[1734312813938,1.5371,226.46,226.34,2.8]
[1734312814236,1.5371,226.46,226.36,9.21128803]
[1734312814433,1.5371,226.46,226.37,4.97209556]
[1734312814642,1.5371,226.46,226.38,4.97209556]
[1734312814836,1.5371,226.46,226.39,4.97209556]
[1734312815138,1.5371,226.46,226.41,2.2096]
[1734312815639,1.5371,226.46,226.42,2.2095]
[1734312815837,1.5371,226.46,226.34,2.8]
[1734312815838,2.2087,226.51,226.39,9.21128803]
[1734312816441,2.78,226.52,226.39,9.21128803]
[1734312816643,11.99128803,226.52,226.39,9.21128803]
[1734312817445,2.78,226.52,226.39,9.21128803]
[1734312817741,4.9886,226.52,226.42,2.2095]
[1734312817942,13.52478803,226.55,226.42,9.21128803]
[1734312817943,4.3135,226.55,226.42,9.21128803]
[1734312818146,2.78,226.53,226.42,9.21128803]
[1734312818347,2.8319,226.55,226.43,5.3271044]
[1734312819446,1.4204,226.55,226.48,2.2089]
[1734312819943,1.4204,226.55,226.48,8.09376432]
[1734312820744,1.4204,226.55,226.48,5.88486432]
[1734312820943,1.4204,226.55,226.5,2.2087]
[1734312823747,1.4204,226.55,226.51,2.2087]
[1734312824143,8.66486432,226.58,226.52,2.2086]
[1734312824544,7.9312,226.61,226.52,5.88486432]
[1734312824750,13.81606432,226.61,226.52,5.88486432]
[1734312825447,11.03606432,226.61,226.55,2.2082]
[1734312826149,11.03606432,226.61,226.56,2.2082]
[1734312827452,11.03606432,226.61,226.47,2.8955]
[1734312827453,1.4535,226.61,226.58,2.208]
[1734312827947,0.37753,226.62,226.59,2.2079]
[1734312828147,0.37753,226.62,226.56,5.88486432]
[1734312828349,0.37753,226.62,226.58,5.88486432]
[1734312830452,0.37753,226.62,226.6,2.2078]
[1734312830753,0.37753,226.62,226.55,7.60003438]
[1734312830953,5.88486432,226.61,226.55,5.39173438]
[1734312831148,2.2078,226.6,226.55,5.39173438]
[1734312831352,5.88486432,226.61,226.55,7.59993438]
[1734312831551,3.15753,226.62,226.55,5.39173438]
[1734312831948,5.36513,226.62,226.57,2.2081]
[1734312832848,5.88486432,226.61,226.55,5.39173438]
[1734312833057,2.2078,226.6,226.55,7.59993438]
[1734312835250,2.2078,226.6,226.55,5.39173438]
[1734312838552,2.2078,226.6,226.55,7.60003438]
[1734312839355,9.04239432,226.62,226.55,7.60003438]
[1734312839655,3.15753,226.62,226.57,2.208]
[1734312841150,5.88486432,226.59,226.47,2.8955]
[1734312841354,5.88486432,226.57,226.47,2.8955]
[1734312841555,5.88486432,226.57,226.49,5.88486432]
[1734312841851,5.88486432,226.55,226.48,5.88486432]
[1734312842358,2.2086,226.53,226.47,2.209]
[1734312842553,2.78,226.56,226.48,5.88486432]
[1734312842755,2.78,226.56,226.5,5.88486432]
[1734312842962,2.78,226.56,226.51,2.2086]
[1734312843454,4.9882,226.56,226.51,2.2086]
[1734312843857,10.87306432,226.56,226.51,2.2086]
[1734312844058,2.2083,226.55,226.49,2.2088]
[1734312844460,5.88486432,226.54,226.46,5.88486432]
[1734312844655,5.88486432,226.54,226.43,5.3271044]
[1734312844861,5.88486432,226.54,226.45,5.88486432]
[1734312845464,2.2084,226.54,226.48,2.2089]
[1734312846064,1.4254,226.55,226.47,5.88486432]
[1734312846264,1.4284,226.58,226.51,5.88486432]
[1734312846766,3.6364,226.58,226.53,2.2084]
[1734312847364,1.4284,226.58,226.54,2.2083]
[1734312848261,3.6364,226.58,226.52,2.2085]
[1734312848563,3.6364,226.58,226.47,2.76]
[1734312848564,3.6364,226.58,226.5,5.88486432]
[1734312849465,3.6364,226.58,226.53,2.2085]
[1734312851257,1.4284,226.58,226.47,2.76]
[1734312851458,2.2081,226.57,226.52,2.2085]
[1734312854066,5.88486432,226.57,226.48,5.88486432]
[1734312854262,5.88486432,226.53,226.45,5.88486432]
[1734312854567,2.2086,226.52,226.46,2.2091]
[1734312854769,5.88486432,226.53,226.46,2.2091]
[1734312855467,2.2089,226.48,226.43,7.5365044]
[1734312855864,5.88486432,226.49,226.44,2.2093]
[1734312856063,5.88486432,226.51,226.43,11.21196872]
[1734312856261,4.2729,226.52,226.45,5.88486432]
[1734312856865,4.2729,226.52,226.47,2.209]
[1734312857870,1.5129,226.52,226.47,2.209]
[1734312858870,4.9684,226.54,226.49,2.2088]
[1734312859072,2.76,226.54,226.47,5.88486432]
[1734312859267,2.76,226.54,226.48,4.96207191]
[1734312859470,2.76,226.54,226.47,5.88486432]
[1734312859675,2.76,226.54,226.48,4.96206581]
[1734312859970,2.76,226.54,226.47,5.88486432]
[1734312860164,2.76,226.54,226.48,4.9620038]
[1734312860366,2.76,226.54,226.49,4.9620038]
[1734312860570,2.76,226.54,226.5,2.2087]
[1734312861169,2.76,226.54,226.49,2.2088]
[1734312863471,4.9683,226.54,226.49,2.2088]
[1734312864366,5.88486432,226.57,226.48,5.88486432]
[1734312864566,2.76,226.57,226.5,5.88486432]
[1734312865268,2.76,226.57,226.53,2.2084]
[1734312867264,2.76,226.57,226.48,5.88486432]
[1734312868077,2.2083,226.55,226.51,2.2086]
[1734312868270,10.07326432,226.58,226.51,2.2086]
[1734312869475,2.2081,226.56,226.52,4.97006482]
[1734312869672,8.09296432,226.56,226.51,2.2086]
[1734312870972,2.2081,226.56,226.51,2.2086]
[1734312873573,2.2083,226.54,226.48,8.09366432]
[1734312873775,2.2083,226.54,226.49,4.97072274]
[1734312873983,2.2083,226.54,226.48,5.88486432]
[1734312874381,2.2083,226.54,226.49,4.97130676]
[1734312874579,2.2083,226.54,226.48,5.88486432]
[1734312875481,2.2083,226.54,226.49,2.2088]
[1734312875879,2.2083,226.54,226.43,5.3271044]
[1734312875880,2.2086,226.52,226.43,5.3271044]
[1734312876083,2.2086,226.52,226.45,5.88486432]
[1734312877478,5.88486432,226.52,226.43,11.21196872]
[1734312877781,5.88486432,226.5,226.43,11.21196872]
[1734312878483,2.2088,226.49,226.44,2.2092]
[1734312884285,2.2088,226.49,226.45,4.97265974]
[1734312884584,2.2088,226.49,226.44,2.2092]
[1734312884782,2.2088,226.49,226.45,4.97266216]
[1734312884981,5.88486432,226.5,226.41,2.2095]
[1734312885180,5.88486432,226.5,226.29,48.51714959]
[1734312885181,5.88486432,226.46,226.42,4.97273649]
[1734312885381,5.88486432,226.46,226.39,5.88486432]
[1734312885686,2.2093,226.44,226.4,7.18186817]
[1734312885887,5.88486432,226.46,226.41,4.97216817]
[1734312886088,2.2092,226.45,226.4,2.2097]
[1734312886294,5.88486432,226.46,226.41,4.97108308]
[1734312886486,5.88486432,226.46,226.4,2.2097]
[1734312886784,8.09406432,226.46,226.41,4.97113476]
[1734312887090,8.09406432,226.46,226.4,2.2097]
[1734312887287,2.2092,226.45,226.41,4.96988642]
[1734312887590,2.2092,226.45,226.4,2.2097]
[1734312887785,2.2092,226.45,226.41,4.96988456]
[1734312887987,2.2092,226.45,226.41,2.2096]
[1734312890089,2.2093,226.44,226.4,5.20059097]
[1734312890293,2.2093,226.44,226.39,8.09456432]
[1734312890592,2.2093,226.44,226.4,7.17693736]
[1734312890790,2.2093,226.44,226.4,2.2097]
[1734312892094,2.76,226.45,226.4,2.2097]
[1734312892294,2.76,226.45,226.39,5.88486432]
[1734312893497,4.9692,226.45,226.41,2.2095]
[1734312894599,4.9692,226.45,226.34,2.76]
[1734312894600,2.2093,226.44,226.39,2.2097]
[1734312894796,2.2093,226.44,226.38,5.88486432]
[1734312896398,2.2093,226.44,226.4,2.2096]
[1734312897399,5.88486432,226.44,226.38,2.2098]
[1734312898391,2.2095,226.42,226.38,2.2098]
[1734312901897,8.09426432,226.44,226.38,2.2098]
[1734312902201,8.09426432,226.44,226.39,2.2097]
[1734312903094,2.2094,226.44,226.38,5.40875858]
[1734312903298,1.4751,226.48,226.44,2.2093]
[1734312904000,2.2088,226.49,226.44,2.2093]
[1734312904498,5.88486432,226.5,226.43,5.88486432]
[1734312904707,5.88486432,226.5,226.46,2.209]
[1734312905301,2.2087,226.51,226.46,2.209]
[1734312906600,5.88486432,226.48,226.38,5.40875858]
[1734312906802,5.88486432,226.46,226.39,4.96042741]
[1734312907001,5.88486432,226.46,226.38,5.88486432]
[1734312907501,5.88486432,226.46,226.39,4.96082686]
[1734312907807,5.88486432,226.46,226.41,2.2096]
[1734312908301,2.74,226.48,226.4,5.88486432]
[1734312908807,2.74,226.48,226.41,5.27075498]
[1734312909007,5.88486432,226.47,226.41,5.27075498]
[1734312909305,2.2089,226.48,226.44,2.2093]
[1734312909902,2.2089,226.48,226.41,5.27075498]
[1734312910102,5.88486432,226.49,226.41,5.27075498]
[1734312910103,5.88486432,226.49,226.42,2.2094]
[1734312910401,5.88486432,226.49,226.41,5.27075498]
[1734312911603,4.4777,226.53,226.41,5.27075498]
[1734312911806,5.88486432,226.51,226.42,10.8476654]
[1734312912003,5.88486432,226.51,226.47,2.2089]
[1734312912305,5.88486432,226.51,226.44,5.88486432]
[1734312912708,5.88486432,226.51,226.47,2.209]
[1734312913299,1.5164,226.53,226.44,5.88486432]
[1734312913501,1.5164,226.53,226.46,5.88486432]
[1734312913703,1.5164,226.53,226.48,5.88486432]
[1734312913906,1.5164,226.53,226.41,5.27075498]
[1734312914104,5.88486432,226.47,226.42,4.9633504]
[1734312914407,5.88486432,226.49,226.41,11.1556193]
[1734312915112,5.88486432,226.49,226.42,4.96638482]
[1734312915301,5.88486432,226.49,226.41,11.1556193]
[1734312915505,5.88486432,226.49,226.44,2.2092]
[1734312915506,8.09376432,226.49,226.44,2.2092]
[1734312915701,2.74,226.52,226.41,11.1556193]
[1734312915903,5.88486432,226.49,226.41,11.1556193]
[1734312916406,5.88486432,226.47,226.41,5.27075498]
[1734312916803,8.09406432,226.45,226.41,5.27075498]
[1734312917309,1.502,226.52,226.43,5.88486432]
[1734312917612,1.502,226.52,226.46,0.66]
[1734312917805,1.5164,226.53,226.48,2.2088]
[1734312918113,5.88486432,226.52,226.46,0.66]
[1734312918411,2.2087,226.5,226.46,2.8691]
[1734312919004,8.09356432,226.5,226.46,2.8691]
[1734312919203,2.2088,226.49,226.46,0.66]
[1734312919902,8.09356432,226.5,226.46,0.66]
[1734312920710,5.88486432,226.48,226.46,0.66]
[1734312921609,1.5296,226.52,226.46,5.88486432]
[1734312921909,1.5164,226.53,226.48,5.88486432]
[1734312922104,2.74,226.59,226.49,4.97280195]
[1734312922309,5.88486432,226.59,226.5,10.85650159]
[1734312922611,7.43406432,226.6,226.52,5.88486432]
[1734312923318,7.43406432,226.6,226.53,4.97126009]
[1734312923612,7.43406432,226.6,226.55,2.2082]
[1734312923613,2.2078,226.59,226.55,2.2082]
[1734312924707,2.2078,226.59,226.51,2.2086]
[1734312925013,2.2078,226.59,226.48,9.1919046]
[1734312925209,2.2078,226.59,226.49,4.96628703]
[1734312925409,2.2078,226.59,226.5,4.96628703]
[1734312925714,2.2078,226.59,226.48,9.1919046]
[1734312926207,2.2078,226.59,226.53,2.2083]
[1734312926411,2.208,226.57,226.48,9.1919046]
[1734312926712,10.7411046,226.6,226.51,2.2086]
[1734312927909,9.1919046,226.57,226.42,9.1919046]
[1734312928113,9.1919046,226.57,226.43,4.96317937]
[1734312928311,9.1919046,226.54,226.44,4.96317937]
[1734312928513,4.1905,226.53,226.44,2.2092]
[1734312928713,4.1905,226.53,226.39,2.74]
[1734312929009,9.1919046,226.51,226.36,9.1919046]
[1734312929413,1.4478,226.5,226.37,4.96350904]
[1734312929715,1.4478,226.5,226.38,4.96350904]
[1734312929915,1.4478,226.5,226.35,4.2379]
[1734312930213,1.4478,226.5,226.36,4.96394332]
[1734312930408,1.4478,226.5,226.35,4.2379]
[1734312930409,2.2092,226.45,226.39,5.30765337]
[1734312930608,9.1919046,226.45,226.31,1.4344]
[1734312930813,9.1919046,226.45,226.32,4.96433798]
[1734312931011,9.1919046,226.45,226.33,10.30169342]
[1734312931216,1.4505,226.44,226.33,5.33735544]
[1734312931417,1.4505,226.44,226.33,7.54775544]
[1734312931819,1.4505,226.44,226.33,5.33735544]
[1734312933015,2.2096,226.41,226.33,7.54775544]
[1734312933216,2.74,226.4,226.27,9.1919046]
[1734312933419,4.1394,226.4,226.3,5.42911186]
[1734312934024,9.1919046,226.39,226.3,5.42911186]
[1734312934416,2.2101,226.36,226.3,7.63981186]
[1734312934822,2.2102,226.35,226.3,5.42911186]
[1734312935119,2.74,226.34,226.21,9.1919046]
[1734312935421,2.74,226.33,226.23,4.96065233]
[1734312935619,2.74,226.33,226.24,4.96065233]
[1734312935816,2.74,226.33,226.21,9.1919046]
[1734312936022,2.74,226.33,226.22,4.9579697]
[1734312936217,2.74,226.33,226.23,4.9579697]
[1734312936425,2.74,226.33,226.26,5.2795584]
[1734312936717,2.74,226.33,226.28,2.2108]
[1734312937126,2.74,226.33,226.29,2.2107]
[1734312937718,2.74,226.33,226.26,5.2795584]
[1734312939322,2.2107,226.3,226.24,2.2112]
[1734312939530,11.9319046,226.33,226.22,5.38218303]
[1734312940426,2.2106,226.32,226.26,2.211]
[1734312941324,2.74,226.33,226.29,2.2107]
[1734312941531,1.5206,226.35,226.22,8.12218303]